[Event "CZE-ch 2020"]
[Site "Pilsen"]
[Date "2020.08.28"]
[Round "6.19"]
[White "Eret, Jonas"]
[Black "Riha, Vojtech"]
[Result "0-1"]
[ECO "A01"]
[WhiteElo "2219"]
[BlackElo "2270"]
[Annotator "NA"]
[PlyCount "96"]
[EventDate "2020.08.23"]
[EventType "swiss"]
[EventCountry "CZE"]
[SourceTitle "playchess.com"]
[Source "ChessBase"]
[SourceQuality "1"]
[TimeControl "40/5400+30:1800+30"]

1. b3 {[%emt 0:02:07]} e5 {[%emt 0:00:12]} 2. Bb2 {[%emt 0:00:20]} Nc6 {[%emt 0:00:29]} 3. e3 {[%emt 0:00:49]} Nf6 {[%emt 0:00:29]} 4. Bb5 {[%emt 0:01:42]} Bd6 {[%emt 0:00:31]} 5. Na3 {[%emt 0:02:34]} Na5 {[%emt 0:00:43]} 6. Nc4 {[%emt 0:00:52] A01: Nimzowitsch-Larsen Opening.} Nxc4 {[%emt 0:00:07]} 7. Bxc4 {[%emt 0:00:04]} Qe7 {[%emt 0:01:11]} 8. Ne2 {[%emt 0:04:22]} c6 {[%emt 0:01:46]} 9. Ng3 {[%emt 0:08:54]} Bc7 {[%emt 0:02:23] [#]} 10. O-O $146 {[%emt 0:02:25]} ({Predecessor:} 10. Nf5 Qf8 11. d4 d6 12. Ng3 Qe7 13. dxe5 Ba5+ 14. c3 Qxe5 15. Qd4 Qxd4 16. exd4 {1-0 (47) Bagheri,M (2308)-Mozaffari,A (2134) Hamedan 2018}) 10... d5 {[%emt 0:03:05]} 11. Be2 {[%emt 0:00:18]} h5 {[%emt 0:01:20]} 12. f3 {[%emt 0:11:19]} h4 {[%emt 0:07:05]} 13. Nh1 {[%emt 0:00:05]} e4 {[%emt 0:01:27]} 14. f4 {[%emt 0:04:14]} Bf5 {[%emt 0:02:01]} 15. c4 {[%emt 0:04:21]} O-O-O {[%emt 0:03:22]} 16. Bd4 {[%emt 0:09:06]} c5 {[%emt 0:01:54]} 17. Bxf6 {[%emt 0:00:14]} Qxf6 {[%emt 0:00:06]} 18. cxd5 {[%emt 0:00:51]} g5 {[%emt 0:02:07]} 19. fxg5 {[%emt 0:04:50]} Qe5 {[%emt 0:00:46] [#]} 20. Rf4 $2 {[%emt 0:00:40] [#]} (20. Rxf5 $1 $16 Qxh2+ (20... Qxf5 21. Bg4) 21. Kf2) 20... Rxd5 {[%emt 0:01:22]} (20... Kb8 $1 $17 21. Qf1 Bg6) 21. Rc1 {[%emt 0:04:01]} Kb8 {[%emt 0:01:43]} 22. Bc4 $15 {[%emt 0:04:37]} Rd7 {[%emt 0:01:49]} 23. Nf2 {[%emt 0:02:11]} Bg6 {[%emt 0:03:39]} 24. Bb5 {[%emt 0:06:13]} Rd6 {[%emt 0:04:47]} 25. Rc2 {[%emt 0:06:00]} Qxg5 {[%emt 0:04:40]} 26. Nxe4 {[%emt 0:07:55]} Bxe4 {[%emt 0:07:36]} 27. Rxe4 {[%emt 0:00:09]} Rg6 {[%emt 0:05:25]} 28. Qf3 {[%emt 0:01:36]} Rhg8 {[%emt 0:02:27]} 29. Bf1 {[%emt 0:02:03]} Rf6 {[%emt 0:01:59]} 30. Qh3 {[%emt 0:00:53]} Qd5 {[%emt 0:01:21]} 31. Rec4 {[%emt 0:05:31]} Rf3 {[%emt 0:07:44]} 32. Rg4 {[%emt 0:03:02]} Rxf1+ {[%emt 0:02:06]} 33. Kxf1 {[%emt 0:00:04]} Qf5+ {[%emt 0:00:04]} 34. Qf3 {[%emt 0:00:20]} Qxg4 {[%emt 0:00:16]} 35. Qxg4 {[%emt 0:00:18]} Rxg4 {[%emt 0:00:05]} 36. Rxc5 {[%emt 0:00:22]} Bxh2 {[%emt 0:00:17]} 37. Rf5 {[%emt 0:00:11]} Rg7 {[%emt 0:00:43]} 38. Kf2 {[%emt 0:00:48]} Kc7 {[%emt 0:00:49]} 39. d4 {[%emt 0:00:33]} Kd7 {[%emt 0:01:25]} 40. Rb5 {[%emt 0:00:41]} b6 {[%emt 0:01:05]} 41. a4 {[%emt 0:30:28]} Rg6 {[%emt 0:31:16]} 42. Rd5+ {[%emt 0:00:14]} Ke6 {[%emt 0:00:51]} 43. Rd8 {[%emt 0:00:06]} Rf6+ {[%emt 0:00:22]} 44. Ke2 {[%emt 0:00:04]} Bg3 {[%emt 0:00:08]} 45. e4 {[%emt 0:00:35]} Rf2+ {[%emt 0:00:16]} 46. Ke3 {[%emt 0:00:05]} Rxg2 {[%emt 0:00:07]} 47. d5+ {[%emt 0:01:28]} Ke7 {[%emt 0:00:06]} 48. Rh8 {[%emt 0:00:43]} Rb2 {[%emt 0:00:32]} 0-1

[Event "CZE-ch 2020"]
[Site "Pilsen"]
[Date "2020.08.28"]
[Round "6.21"]
[White "Simet, Martin"]
[Black "Nemec, Pavel"]
[Result "0-1"]
[ECO "B84"]
[WhiteElo "2194"]
[BlackElo "2243"]
[Annotator "ChessBase"]
[PlyCount "64"]
[EventDate "2020.08.23"]
[EventType "swiss"]
[EventCountry "CZE"]
[SourceTitle "playchess.com"]
[Source "ChessBase"]
[SourceQuality "1"]
[TimeControl "40/5400+30:1800+30"]

1. e4 {[%emt 0:00:12]} c5 {[%emt 0:00:00]} 2. Nf3 {[%emt 0:00:35]} e6 {[%emt 0:00:00]} 3. d4 {[%emt 0:00:42]} cxd4 {[%emt 0:00:00]} 4. Nxd4 {[%emt 0:00:06]} a6 {[%emt 0:00:19]} 5. Nc3 {[%emt 0:04:53]} d6 {[%emt 0:00:24]} 6. Be2 {[%emt 0:00:34]} Nf6 {[%emt 0:00:17]} 7. Be3 {[%emt 0:01:54]} Nbd7 {[%emt 0:00:19]} 8. f4 {[%emt 0:08:00]} Qc7 {[%emt 0:00:20]} 9. a4 {[%emt 0:02:48]} b6 {[%emt 0:00:35]} 10. Bf3 {[%emt 0:03:48]} Bb7 {[%emt 0:00:18]} 11. Qe2 {[%emt 0:03:14]} Be7 {[%emt 0:00:45]} 12. O-O {[%emt 0:00:42]} O-O {[%emt 0:00:23]} 13. Rae1 {[%emt 0:02:49]} Rac8 {[%emt 0:01:54]} 14. Kh1 {[%emt 0:02:43]} Qb8 {[%emt 0:02:10]} 15. Bd2 {[%emt 0:02:11]} Rfd8 {[%emt 0:10:57]} 16. e5 {[%emt 0:06:05]} Ne8 {[%emt 0:09:58]} 17. f5 {[%emt 0:04:02]} Bxf3 {[%emt 0:05:24]} 18. Rxf3 {[%emt 0:04:10]} Nxe5 {[%emt 0:00:42]} 19. fxe6 {[%emt 0:00:15]} fxe6 {[%emt 0:03:40]} 20. Rh3 {[%emt 0:04:08]} Nf6 {[%emt 0:07:08]} 21. Nxe6 {[%emt 0:04:08]} Rd7 {[%emt 0:00:31]} 22. Ne4 {[%emt 0:07:00]} Rxc2 {[%emt 0:03:30]} 23. Rf1 {[%emt 0:07:11]} Qc8 {[%emt 0:03:41]} 24. Nxf6+ {[%emt 0:12:16]} Bxf6 {[%emt 0:00:01]} 25. Qh5 {[%emt 0:01:38]} g6 {[%emt 0:05:47]} 26. Qd1 {[%emt 0:00:07]} Rf7 {[%emt 0:01:05]} 27. Nf4 {[%emt 0:04:08]} Rc4 {[%emt 0:13:05]} 28. Nd5 {[%emt 0:01:51]} Qe6 {[%emt 0:07:19]} 29. Nxb6 {[%emt 0:01:52]} Rd4 {[%emt 0:02:01]} 30. Qe1 {[%emt 0:02:24]} Bd8 {[%emt 0:00:40]} 31. Rxf7 {[%emt 0:02:21]} Qxf7 {[%emt 0:00:08]} 32. Ba5 {[%emt 0:00:16]} Nd3 {[%emt 0:00:54]} 0-1

[Event "CZE-ch 2020"]
[Site "Pilsen"]
[Date "2020.08.28"]
[Round "6.22"]
[White "Nytra, Ondrej"]
[Black "Kawulok, Marek"]
[Result "1-0"]
[ECO "B32"]
[WhiteElo "1925"]
[BlackElo "2226"]
[Annotator "ChessBase"]
[PlyCount "103"]
[EventDate "2020.08.23"]
[EventType "swiss"]
[EventCountry "CZE"]
[SourceTitle "playchess.com"]
[Source "ChessBase"]
[SourceQuality "1"]
[TimeControl "40/5400+30:1800+30"]

1. e4 {[%emt 0:00:00]} c5 {[%emt 0:00:00]} 2. Nf3 {[%emt 0:00:00]} Nc6 {[%emt 0:00:00]} 3. d4 {[%emt 0:00:00]} cxd4 {[%emt 0:00:00]} 4. Nxd4 {[%emt 0:00:00]} g6 {[%emt 0:00:00]} 5. Be2 {[%emt 0:00:00]} Bg7 {[%emt 0:00:00]} 6. Nb3 {[%emt 0:00:01]} Nf6 {[%emt 0:00:09]} 7. Nc3 {[%emt 0:00:04]} O-O {[%emt 0:00:10]} 8. O-O {[%emt 0:00:03]} d6 {[%emt 0:00:12]} 9. Bg5 {[%emt 0:00:03]} Be6 {[%emt 0:00:54]} 10. Kh1 {[%emt 0:00:05]} Rc8 {[%emt 0:03:38]} 11. f4 {[%emt 0:00:07]} Na5 {[%emt 0:09:23]} 12. f5 {[%emt 0:00:42]} Bc4 {[%emt 0:19:59]} 13. Bd3 {[%emt 0:00:31]} Nxb3 {[%emt 0:07:30]} 14. axb3 {[%emt 0:02:09]} Bxd3 {[%emt 0:00:07]} 15. Qxd3 {[%emt 0:01:03]} a6 {[%emt 0:00:16]} 16. Rae1 {[%emt 0:12:49]} Nd7 {[%emt 0:05:58]} 17. Nd5 {[%emt 0:01:39]} Re8 {[%emt 0:00:18]} 18. fxg6 {[%emt 0:09:21]} hxg6 {[%emt 0:00:12]} 19. Qh3 {[%emt 0:00:06]} Rxc2 {[%emt 0:05:46]} 20. Rxf7 {[%emt 0:02:16]} Kxf7 {[%emt 0:04:27]} 21. Nf4 {[%emt 0:14:57]} Nf8 {[%emt 0:00:54]} 22. Rf1 {[%emt 0:01:28]} Bf6 {[%emt 0:11:22]} 23. Qh6 {[%emt 0:15:59]} Rc5 {[%emt 0:03:26]} 24. h4 {[%emt 0:08:51]} Qc8 {[%emt 0:06:54]} 25. Nd3 {[%emt 0:05:17]} Rb5 {[%emt 0:08:27]} 26. e5 {[%emt 0:13:08]} dxe5 {[%emt 0:00:11]} 27. Qh8 {[%emt 0:00:41]} Nd7 {[%emt 0:04:27]} 28. Qh7+ {[%emt 0:00:48]} Ke6 {[%emt 0:00:09]} 29. Qxg6 {[%emt 0:00:23]} Kd6 {[%emt 0:00:23]} 30. Rc1 {[%emt 0:00:40]} Rg8 {[%emt 0:02:17]} 31. Qe4 {[%emt 0:06:32]} Qe8 {[%emt 0:01:42]} 32. Nb4 {[%emt 0:01:36]} Ke6 {[%emt 0:01:21]} 33. Qc4+ {[%emt 0:00:26]} Kf5 {[%emt 0:00:06]} 34. Qd3+ {[%emt 0:01:27]} e4 {[%emt 0:00:09]} 35. Rf1+ {[%emt 0:00:11]} Kg6 {[%emt 0:00:03]} 36. Qxe4+ {[%emt 0:00:03]} Kg7 {[%emt 0:00:11]} 37. Nd5 {[%emt 0:00:39]} Qg6 {[%emt 0:02:36]} 38. Rf5 {[%emt 0:04:23]} Bxg5 {[%emt 0:03:26]} 39. Rxg5 {[%emt 0:00:21]} Qxg5 {[%emt 0:00:08]} 40. hxg5 {[%emt 0:00:03]} e5 {[%emt 0:00:35]} 41. Ne7 {[%emt 0:30:47]} Rh8+ {[%emt 0:02:24]} 42. Kg1 {[%emt 0:00:00]} Rb6 {[%emt 0:00:11]} 43. Nf5+ {[%emt 0:00:00]} Kf8 {[%emt 0:01:05]} 44. Qd5 {[%emt 0:00:00]} Ke8 {[%emt 0:00:45]} 45. g6 {[%emt 0:00:00]} Rxg6 {[%emt 0:02:50]} 46. Qxb7 {[%emt 0:00:00]} Rhg8 {[%emt 0:00:10]} 47. Qc8+ {[%emt 0:00:00]} Kf7 {[%emt 0:00:06]} 48. Qxd7+ {[%emt 0:00:00]} Kf6 {[%emt 0:00:06]} 49. Ne3 {[%emt 0:00:00]} R8g7 {[%emt 0:01:41]} 50. Qd6+ {[%emt 0:00:00]} Kf7 {[%emt 0:00:05]} 51. Qxe5 {[%emt 0:00:00]} Kf8 {[%emt 0:00:17]} 52. Qd5 {[%emt 0:00:00]} 1-0

[Event "CZE-ch 2020"]
[Site "Pilsen"]
[Date "2020.08.28"]
[Round "6.24"]
[White "Stinka, Jakub"]
[Black "Bartos, Jan"]
[Result "1/2-1/2"]
[ECO "A90"]
[WhiteElo "2299"]
[BlackElo "2131"]
[Annotator "NA"]
[PlyCount "66"]
[EventDate "2020.08.23"]
[EventType "swiss"]
[EventCountry "CZE"]
[SourceTitle "playchess.com"]
[Source "ChessBase"]
[SourceQuality "1"]
[TimeControl "40/5400+30:1800+30"]

1. d4 {[%emt 0:00:00]} e6 {[%emt 0:00:52]} 2. c4 {[%emt 0:00:00]} f5 {[%emt 0:00:04]} 3. g3 {[%emt 0:00:10]} Nf6 {[%emt 0:00:06]} 4. Bg2 {[%emt 0:00:14]} d5 {[%emt 0:00:08]} 5. Nf3 {[%emt 0:00:37]} Be7 {[%emt 0:00:12]} 6. O-O {[%emt 0:00:42]} Ne4 {[%emt 0:00:08]} 7. b3 {[%emt 0:10:12]} Nc6 {[%emt 0:01:53]} 8. Bb2 {[%emt 0:03:29]} Bf6 {[%emt 0:05:33]} 9. e3 {[%emt 0:05:11]} h5 {[%emt 0:00:08]} 10. Ne5 {[%emt 0:09:21]} Bxe5 {[%emt 0:02:40]} 11. dxe5 {[%emt 0:01:04]} h4 {[%emt 0:04:38]} 12. f3 {[%emt 0:09:40]} Ng5 {[%emt 0:24:53]} 13. cxd5 {[%emt 0:03:54]} exd5 {[%emt 0:03:19]} 14. Qe1 {[%emt 0:01:00]} Be6 {[%emt 0:08:23]} 15. gxh4 {[%emt 0:05:16]} Rxh4 {[%emt 0:00:26]} 16. Kh1 $11 {[%emt 0:09:13]} Nf7 {[%emt 0:07:56]} 17. f4 {[%emt 0:07:51]} Rh7 {[%emt 0:09:39]} 18. Nc3 {[%emt 0:07:46]} Ne7 {[%emt 0:00:58]} 19. Rd1 {[%emt 0:02:26]} c6 {[%emt 0:00:53]} 20. Ba3 {[%emt 0:04:22]} Ng6 {[%emt 0:02:18]} 21. e4 {[%emt 0:02:48]} Nh4 {[%emt 0:00:09]} 22. exd5 {[%emt 0:01:14]} Nxg2 {[%emt 0:00:37]} 23. dxe6 {[%emt 0:01:25]} Nxe1 {[%emt 0:00:21]} 24. exf7+ {[%emt 0:00:12]} Kxf7 {[%emt 0:00:32]} 25. Rxd8 {[%emt 0:00:22]} Rxd8 {[%emt 0:00:05]} 26. Rxe1 {[%emt 0:00:12]} Rd3 {[%emt 0:05:07]} 27. e6+ {[%emt 0:06:19]} Ke8 {[%emt 0:00:05]} 28. Bb2 {[%emt 0:03:13]} Rhh3 {[%emt 0:02:06]} 29. Ne2 {[%emt 0:02:09]} Rhe3 {[%emt 0:04:30]} 30. Bc1 {[%emt 0:03:49]} Rxe2 {[%emt 0:01:08]} 31. Rxe2 {[%emt 0:00:39]} Rd1+ {[%emt 0:00:04]} 32. Kg2 {[%emt 0:00:02]} Rxc1 {[%emt 0:00:04]} 33. Kf3 {[%emt 0:00:55]} Rc3+ {[%emt 0:01:00]} 1/2-1/2

[Event "CZE-ch 2020"]
[Site "Pilsen"]
[Date "2020.08.28"]
[Round "6.26"]
[White "Vojta, Jakub"]
[Black "Vorisek, Jakub"]
[Result "0-1"]
[ECO "C17"]
[WhiteElo "2093"]
[BlackElo "2205"]
[Annotator "ChessBase"]
[PlyCount "164"]
[EventDate "2020.08.23"]
[EventType "swiss"]
[EventCountry "CZE"]
[SourceTitle "playchess.com"]
[Source "ChessBase"]
[SourceQuality "1"]
[TimeControl "40/5400+30:1800+30"]

1. e4 {[%emt 0:00:00]} e6 {[%emt 0:00:00]} 2. d4 {[%emt 0:00:00]} d5 {[%emt 0:00:00]} 3. Nc3 {[%emt 0:00:00]} Bb4 {[%emt 0:01:40]} 4. e5 {[%emt 0:00:00]} c5 {[%emt 0:00:16]} 5. a3 {[%emt 0:00:00]} Ba5 {[%emt 0:01:03]} 6. b4 {[%emt 0:00:08]} cxd4 {[%emt 0:00:32]} 7. Qg4 {[%emt 0:00:04]} Kf8 {[%emt 0:01:10]} 8. Nb5 {[%emt 0:00:10]} Bc7 {[%emt 0:28:10]} 9. Qxd4 {[%emt 0:00:51]} Nc6 {[%emt 0:01:33]} 10. Qc5+ {[%emt 0:00:22]} Nge7 {[%emt 0:00:30]} 11. Nxc7 {[%emt 0:00:48]} Qxc7 {[%emt 0:00:06]} 12. Nf3 {[%emt 0:00:18]} a6 {[%emt 0:09:38]} 13. Bf4 {[%emt 0:13:05]} Bd7 {[%emt 0:02:08]} 14. Bd3 {[%emt 0:02:37]} Rc8 {[%emt 0:02:57]} 15. O-O {[%emt 0:02:10]} Nb8 {[%emt 0:05:35]} 16. Qd6 {[%emt 0:07:39]} Qxd6 {[%emt 0:05:07]} 17. exd6 {[%emt 0:00:10]} Ng6 {[%emt 0:00:09]} 18. Bg3 {[%emt 0:01:33]} Ba4 {[%emt 0:02:06]} 19. h4 {[%emt 0:02:48]} Ke8 {[%emt 0:01:56]} 20. h5 {[%emt 0:02:45]} Nf8 {[%emt 0:00:11]} 21. Rfe1 {[%emt 0:01:54]} f6 {[%emt 0:08:00]} 22. c4 {[%emt 0:09:39]} dxc4 {[%emt 0:00:48]} 23. Rac1 {[%emt 0:00:13]} b5 {[%emt 0:05:02]} 24. Nd4 {[%emt 0:02:51]} Kf7 {[%emt 0:01:49]} 25. Be4 {[%emt 0:02:48]} Re8 {[%emt 0:07:35]} 26. Re3 {[%emt 0:02:13]} Nfd7 {[%emt 0:08:08]} 27. Rce1 {[%emt 0:01:20]} Nb6 {[%emt 0:00:40]} 28. h6 {[%emt 0:02:31]} g6 {[%emt 0:00:36]} 29. f4 {[%emt 0:11:49]} Rd8 {[%emt 0:00:18]} 30. Bb1 {[%emt 0:20:13]} Rxd6 {[%emt 0:00:39]} 31. Nxe6 {[%emt 0:00:35]} Nc6 {[%emt 0:02:52]} 32. f5 {[%emt 0:00:49]} Rd1 {[%emt 0:00:09]} 33. Kf2 {[%emt 0:04:12]} Rxe1 {[%emt 0:00:10]} 34. Kxe1 {[%emt 0:00:29]} Nd5 {[%emt 0:00:14]} 35. Rf3 {[%emt 0:00:30]} g5 {[%emt 0:01:25]} 36. Be4 {[%emt 0:00:19]} Nce7 {[%emt 0:00:55]} 37. Nxg5+ {[%emt 0:01:56]} fxg5 {[%emt 0:00:07]} 38. f6 {[%emt 0:00:04]} g4 {[%emt 0:03:29]} 39. Rf2 {[%emt 0:00:32]} Nxf6 {[%emt 0:00:58]} 40. Be5 {[%emt 0:00:10]} Neg8 {[%emt 0:00:38]} 41. Bd5+ {[%emt 0:30:32]} Kg6 {[%emt 0:03:07]} 42. Bxg8 {[%emt 0:00:00]} Rxg8 {[%emt 0:01:25]} 43. Rxf6+ {[%emt 0:00:00]} Kg5 {[%emt 0:04:12]} 44. Kd2 {[%emt 0:00:00]} Rd8+ {[%emt 0:06:52]} 45. Rd6 {[%emt 0:00:00]} Rxd6+ {[%emt 0:00:08]} 46. Bxd6 {[%emt 0:00:00]} Kxh6 {[%emt 0:00:03]} 47. g3 {[%emt 0:00:00]} Kg5 {[%emt 0:00:08]} 48. Be7+ {[%emt 0:00:00]} Kf5 {[%emt 0:00:09]} 49. Bd8 {[%emt 0:00:00]} Ke4 {[%emt 0:00:35]} 50. Bf6 {[%emt 0:00:00]} Kf3 {[%emt 0:00:42]} 51. Bh4 {[%emt 0:00:00]} h6 {[%emt 0:03:55]} 52. Kc3 {[%emt 0:00:00]} Ke2 {[%emt 0:00:10]} 53. Bf6 {[%emt 0:00:00]} Kd1 {[%emt 0:06:01]} 54. Bg7 {[%emt 0:00:00]} h5 {[%emt 0:00:13]} 55. Bf6 {[%emt 0:00:00]} Kc1 {[%emt 0:04:10]} 56. Bg5+ {[%emt 0:00:00]} Kb1 {[%emt 0:00:37]} 57. Bh4 {[%emt 0:00:00]} Ka2 {[%emt 0:00:29]} 58. Bf6 {[%emt 0:00:00]} Kxa3 {[%emt 0:00:15]} 59. Be7 {[%emt 0:00:00]} Ka2 {[%emt 0:01:10]} 60. Bh4 {[%emt 0:00:00]} Kb1 {[%emt 0:00:08]} 61. Bg5 {[%emt 0:00:00]} Bb3 {[%emt 0:01:06]} 62. Bd8 {[%emt 0:00:00]} Ka2 {[%emt 0:01:08]} 63. Bf6 {[%emt 0:00:00]} Ka3 {[%emt 0:00:09]} 64. Be7 {[%emt 0:00:00]} Ka4 {[%emt 0:00:14]} 65. Bd8 {[%emt 0:00:00]} Bd1 {[%emt 0:01:28]} 66. Bc7 {[%emt 0:00:00]} Bf3 {[%emt 0:00:52]} 67. Bd8 {[%emt 0:00:00]} Ka3 {[%emt 0:00:57]} 68. Be7 {[%emt 0:00:00]} Be4 {[%emt 0:00:31]} 69. Bf6 {[%emt 0:00:00]} Bd3 {[%emt 0:01:02]} 70. Be7 {[%emt 0:00:00]} Ka4 {[%emt 0:00:12]} 71. Bd8 {[%emt 0:00:00]} a5 {[%emt 0:01:47]} 72. Bxa5 {[%emt 0:00:00]} h4 {[%emt 0:00:07]} 73. gxh4 {[%emt 0:00:00]} g3 {[%emt 0:00:05]} 74. Bb6 {[%emt 0:00:00]} g2 {[%emt 0:00:06]} 75. Bc5 {[%emt 0:00:00]} Ka3 {[%emt 0:00:06]} 76. h5 {[%emt 0:00:00]} Ka2 {[%emt 0:00:07]} 77. h6 {[%emt 0:00:00]} Kb1 {[%emt 0:00:11]} 78. Be3 {[%emt 0:00:00]} Bh7 {[%emt 0:00:12]} 79. Kd2 {[%emt 0:00:00]} Kb2 {[%emt 0:00:04]} 80. Bd4+ {[%emt 0:00:00]} Kb3 {[%emt 0:00:06]} 81. Bc5 {[%emt 0:00:00]} c3+ {[%emt 0:00:24]} 82. Kc1 {[%emt 0:00:00]} c2 {[%emt 0:00:09]} 0-1

[Event "CZE-ch 2020"]
[Site "Pilsen"]
[Date "2020.08.28"]
[Round "6.32"]
[White "Simek, Petr"]
[Black "Malinovsky, Petr"]
[Result "1-0"]
[ECO "D31"]
[WhiteElo "2324"]
[BlackElo "2081"]
[Annotator "ChessBase"]
[PlyCount "71"]
[EventDate "2020.08.23"]
[EventType "swiss"]
[EventCountry "CZE"]
[SourceTitle "playchess.com"]
[Source "ChessBase"]
[SourceQuality "1"]
[TimeControl "40/5400+30:1800+30"]

1. c4 {[%emt 0:00:00]} e6 {[%emt 0:00:00]} 2. Nc3 {[%emt 0:00:00]} d5 {[%emt 0:00:00]} 3. d4 {[%emt 0:00:00]} a6 {[%emt 0:00:26]} 4. cxd5 {[%emt 0:01:07]} exd5 {[%emt 0:00:07]} 5. Qb3 {[%emt 0:00:14]} c6 {[%emt 0:01:03]} 6. e4 {[%emt 0:08:02]} dxe4 {[%emt 0:03:46]} 7. Bc4 {[%emt 0:00:15]} Qe7 {[%emt 0:04:25]} 8. a4 {[%emt 0:01:04]} Nf6 {[%emt 0:06:21]} 9. Bg5 {[%emt 0:03:10]} Be6 {[%emt 0:08:57]} 10. Bxe6 {[%emt 0:04:07]} fxe6 {[%emt 0:00:34]} 11. Nge2 {[%emt 0:00:13]} h6 {[%emt 0:02:05]} 12. Bxf6 {[%emt 0:12:53]} gxf6 {[%emt 0:00:10]} 13. O-O {[%emt 0:00:07]} f5 {[%emt 0:05:11]} 14. Nf4 {[%emt 0:01:04]} Kf7 {[%emt 0:00:34]} 15. Nxe6 {[%emt 0:01:03]} Qxe6 {[%emt 0:03:29]} 16. Qxb7+ {[%emt 0:00:07]} Nd7 {[%emt 0:01:20]} 17. Qxa8 {[%emt 0:00:12]} Bg7 {[%emt 0:00:46]} 18. Qxa6 {[%emt 0:05:48]} Bxd4 {[%emt 0:07:05]} 19. Rad1 {[%emt 0:00:07]} c5 {[%emt 0:06:37]} 20. Qxe6+ {[%emt 0:06:13]} Kxe6 {[%emt 0:00:12]} 21. Ne2 {[%emt 0:00:06]} Be5 {[%emt 0:06:31]} 22. b3 {[%emt 0:00:18]} Rb8 {[%emt 0:01:51]} 23. Rb1 {[%emt 0:00:10]} Nf6 {[%emt 0:00:48]} 24. Rfc1 {[%emt 0:04:01]} Bd6 {[%emt 0:02:30]} 25. Nc3 {[%emt 0:07:55]} Ng4 {[%emt 0:04:59]} 26. h3 {[%emt 0:00:11]} Ne5 {[%emt 0:00:04]} 27. Rd1 {[%emt 0:04:03]} Rg8 {[%emt 0:03:46]} 28. Nb5 {[%emt 0:01:53]} Bb8 {[%emt 0:05:05]} 29. a5 {[%emt 0:00:44]} f4 {[%emt 0:03:42]} 30. Kh1 {[%emt 0:06:36]} Nd3 {[%emt 0:00:54]} 31. Rd2 {[%emt 0:00:15]} Nb4 {[%emt 0:02:45]} 32. Re1 {[%emt 0:00:53]} Ke5 {[%emt 0:03:02]} 33. Nc3 {[%emt 0:00:47]} e3 {[%emt 0:00:17]} 34. fxe3 {[%emt 0:00:07]} f3 {[%emt 0:00:06]} 35. gxf3 {[%emt 0:00:50]} Rg3 {[%emt 0:00:24]} 36. f4+ {[%emt 0:00:11]} 1-0

[Event "CZE-ch 2020"]
[Site "Pilsen"]
[Date "2020.08.28"]
[Round "6.34"]
[White "Jezek, Jan"]
[Black "Kures, Michael"]
[Result "0-1"]
[ECO "B22"]
[WhiteElo "2162"]
[BlackElo "2019"]
[Annotator "NA"]
[PlyCount "76"]
[EventDate "2020.08.23"]
[EventType "swiss"]
[EventCountry "CZE"]
[SourceTitle "playchess.com"]
[Source "ChessBase"]
[SourceQuality "1"]
[TimeControl "40/5400+30:1800+30"]

1. e4 {[%emt 0:00:00]} c5 {[%emt 0:00:00]} 2. c3 {[%emt 0:00:00]} d5 {[%emt 0:00:00]} 3. d3 {[%emt 0:00:00]} Nc6 {[%emt 0:02:39]} 4. Nd2 {[%emt 0:00:28]} Nf6 {[%emt 0:00:41]} 5. Ngf3 {[%emt 0:00:26]} e5 {[%emt 0:02:57]} 6. Be2 {[%emt 0:00:17]} Be7 {[%emt 0:00:56]} 7. O-O {[%emt 0:00:12]} O-O {[%emt 0:00:04] B29: Sicilian: 2 Nf3 Nf6 (Nimzowitsch Variation).} 8. Re1 {[%emt 0:01:57]} d4 {[%emt 0:01:58]} 9. Nc4 {[%emt 0:07:12]} Nd7 {[%emt 0:01:52]} 10. a4 {[%emt 0:00:46] [#]} f6 $146 {[%emt 0:00:54]} ({Predecessor:} 10... b6 11. Bd2 Ba6 12. Qb3 Rb8 13. h3 Re8 14. Qa2 h6 15. Rac1 Bf8 16. g3 Rb7 {½-½ (51) Sakr,N (2150)-Bouaziz,S (2338) Beirut 2014}) 11. a5 {[%emt 0:07:36]} Kh8 {[%emt 0:00:58]} 12. Bd2 {[%emt 0:04:02]} b5 {[%emt 0:02:25]} 13. axb6 $1 {[%emt 0:01:44]} Nxb6 {[%emt 0:00:17]} 14. Nxb6 {[%emt 0:02:21]} Qxb6 {[%emt 0:00:08]} 15. Qc1 {[%emt 0:20:01]} Rb8 {[%emt 0:02:06]} 16. Ra2 {[%emt 0:07:08]} Be6 {[%emt 0:02:52]} 17. c4 {[%emt 0:00:07]} Rb7 {[%emt 0:07:07]} 18. Qa1 {[%emt 0:02:16]} Qc7 {[%emt 0:03:03]} 19. Bd1 {[%emt 0:05:18]} Rfb8 {[%emt 0:15:05]} 20. h3 $15 {[%emt 0:05:08]} Bd6 {[%emt 0:03:07]} 21. b3 {[%emt 0:06:27]} Re8 {[%emt 0:02:30]} 22. Ra3 {[%emt 0:05:35]} Qd7 {[%emt 0:04:01]} 23. Nh2 {[%emt 0:00:59]} f5 {[%emt 0:00:30]} 24. Bf3 {[%emt 0:03:45]} f4 {[%emt 0:00:55]} 25. Qd1 {[%emt 0:00:14]} Reb8 {[%emt 0:01:47]} 26. Bg4 {[%emt 0:00:44]} Bxg4 {[%emt 0:00:39]} 27. hxg4 {[%emt 0:00:29]} Rb6 {[%emt 0:01:28]} 28. Qc2 {[%emt 0:01:14]} Be7 {[%emt 0:01:12]} 29. Rb1 {[%emt 0:01:09]} Kg8 {[%emt 0:00:24]} 30. Qa2 {[%emt 0:01:27]} Qe8 {[%emt 0:03:03]} 31. Ra6 {[%emt 0:01:52]} h5 {[%emt 0:00:42]} 32. Rxb6 {[%emt 0:00:31]} Rxb6 {[%emt 0:00:06]} 33. gxh5 {[%emt 0:02:51]} Qxh5 {[%emt 0:00:22]} 34. f3 {[%emt 0:02:31]} Nb4 {[%emt 0:09:03]} 35. Bxb4 {[%emt 0:01:55]} Rh6 {[%emt 0:00:54]} 36. g4 {[%emt 0:06:29]} fxg3 {[%emt 0:00:11]} 37. Be1 {[%emt 0:00:16]} gxh2+ {[%emt 0:00:12]} 38. Kh1 {[%emt 0:00:08]} Qxf3+ {[%emt 0:00:08]} 0-1